bitfinex/quotes_SOLUSD_20251127
["timestamp","ask_amount","ask_price","bid_price","bid_amount"]
[1764215883688,2.50632448,142.81,142.79,61.5]
[1764215883881,9.50863669,142.81,142.79,61.5]
[1764215884062,0.66,142.8,142.79,61.5]
[1764215885376,2.50632448,142.8,142.79,61.5]
[1764215888476,0.66,142.8,142.79,61.5]
[1764215890498,0.66,142.8,142.72,7.00655969]
[1764215890499,25.8179896,142.8,142.72,7.00655969]
[1764215890793,1.84632448,142.78,142.72,73.94288417]
[1764215890979,1.84632448,142.78,142.73,1.84632448]
[1764215891178,0.66,142.77,142.73,1.84632448]
[1764215891493,0.66,142.77,142.73,2.35632448]
[1764215891688,0.66,142.77,142.73,8.85217689]
[1764215892075,0.66,142.77,142.73,9.36217689]
[1764215893993,0.66,142.77,142.73,8.85217689]
[1764215895181,2.50632448,142.77,142.73,7.00585241]
[1764215895587,0.66,142.76,142.73,7.00585241]
[1764215896288,0.66,142.76,142.73,7.51585241]
[1764215896494,0.66,142.76,142.73,9.36217689]
[1764215896698,0.66,142.76,142.73,70.86217689]
[1764215897880,0.66,142.76,142.73,68.50585241]
[1764215898089,0.66,142.76,142.73,70.86217689]
[1764215899587,0.66,142.76,142.73,69.01585241]
[1764215903294,0.66,142.77,142.74,0.51]
[1764215903593,0.66,142.77,142.73,70.86217689]
[1764215904198,11.92973885,142.79,142.74,2.35632448]
[1764215904500,0.66,142.78,142.74,2.35632448]
[1764215905717,7.66380549,142.78,142.74,61.5]
[1764215905878,16.308864,142.77,142.72,61.5]
[1764215906195,3.08,142.76,142.72,61.5]
[1764215906380,3.74,142.76,142.72,61.5]
[1764215906580,0.66,142.75,142.72,61.5]
[1764215910204,0.66,142.75,142.72,68.50654424]
[1764215913678,0.66,142.75,142.72,69.01654424]
[1764215913875,21.04893878,142.77,142.73,3.39886212]
[1764215913876,0.66,142.77,142.73,3.39886212]
[1764215914082,0.66,142.77,142.74,0.51]
[1764215914583,0.66,142.77,142.74,7.00566069]
[1764215915596,0.66,142.77,142.73,10.40508796]
[1764215917408,0.66,142.77,142.73,71.90508796]
[1764215918194,21.04450913,142.8,142.74,3.17318526]
[1764215918495,0.66,142.8,142.76,2.88886212]
[1764215918892,0.66,142.8,142.76,3.39886212]
[1764215919499,0.66,142.8,142.76,10.40342525]
[1764215923411,0.66,142.8,142.76,71.90342525]
[1764215926314,0.66,142.8,142.76,71.39342525]
[1764215926810,0.66,142.8,142.76,68.50456313]
[1764215927293,0.66,142.8,142.76,69.01456313]
[1764215928600,2.88886212,142.78,142.74,21.09612635]
[1764215928807,2.88886212,142.76,142.74,0.056045]
[1764215929114,5.96886212,142.76,142.74,0.056045]
[1764215929308,6.64886212,142.76,142.74,0.056045]
[1764215929708,5.96886212,142.76,142.74,0.056045]
[1764215930021,0.68,142.75,142.74,0.056045]
[1764215932215,3.76,142.76,142.74,0.056045]
[1764215938302,3.76,142.76,142.74,61.556045]
[1764215939121,3.08,142.76,142.74,61.556045]
[1764215939310,0.68,142.75,142.74,61.556045]
[1764215942223,3.76,142.76,142.74,61.556045]
[1764215943024,3.76,142.76,142.74,64.44490712]
[1764215943428,3.76,142.76,142.74,61.556045]
[1764215943624,38.00200669,142.78,142.75,3.39886212]
[1764215943808,3.08,142.78,142.77,2.88886212]
[1764215944010,3.76,142.78,142.77,2.88886212]
[1764215944929,3.76,142.78,142.76,2.88886212]
[1764215946703,3.76,142.78,142.77,2.88886212]
[1764215948225,3.76,142.78,142.76,2.88886212]
[1764215949526,3.76,142.78,142.77,2.88886212]
[1764215950109,20.068864,142.79,142.77,64.38886212]
[1764215950801,0.68,142.78,142.76,61.5]
[1764215951400,21.72598547,142.78,142.76,61.5]
[1764215951806,0.68,142.77,142.76,61.5]
[1764215952613,3.56886212,142.77,142.76,61.5]
[1764215954710,6.64886212,142.77,142.76,61.5]
[1764215957314,22.46307964,142.77,142.74,0.056045]
[1764215957633,2.88886212,142.75,142.74,0.056045]
[1764215957817,5.96886212,142.75,142.74,0.056045]
[1764215958156,6.64886212,142.75,142.74,0.056045]
[1764215958705,27.6978009,142.75,142.74,0.056045]
[1764215959127,36.50774582,142.75,142.74,0.056045]
[1764215959334,43.7973229,142.75,142.74,0.056045]
[1764215959523,2.88886212,142.7,142.66,3.74]
[1764215959837,2.88886212,142.69,142.66,10.74960107]
[1764215960134,16.308864,142.69,142.66,7.66960107]
[1764215960427,16.988864,142.69,142.66,7.66960107]
[1764215963422,16.988864,142.69,142.66,10.55846319]
[1764215964935,16.988864,142.69,142.66,72.05846319]
[1764215966412,16.308864,142.69,142.66,71.49846319]
[1764215966631,16.988864,142.69,142.66,72.05846319]
[1764215967338,16.308864,142.69,142.66,71.49846319]
[1764215967524,0.68,142.7,142.66,71.49846319]
[1764215967717,21.73484787,142.7,142.66,72.05846319]
[1764215967930,24.81484787,142.7,142.67,0.56]
[1764215968337,3.76,142.71,142.67,3.44886212]
[1764215968540,3.76,142.71,142.68,7.00869077]
[1764215970926,3.76,142.71,142.68,69.06869077]
[1764215972239,3.76,142.71,142.68,71.95755289]
[1764215972643,3.76,142.71,142.68,69.06869077]
[1764215973029,20.068864,142.72,142.69,0.56]
[1764215973217,20.068864,142.72,142.69,62.06]
[1764215974242,20.068864,142.72,142.69,69.06801412]
[1764215976228,20.068864,142.72,142.69,68.50801412]
[1764215977241,0.68,142.71,142.69,68.50801412]
[1764215979244,13.7397255,142.7,142.66,0.1]
[1764215979554,18.15864458,142.67,142.66,0.1]
[1764215979754,21.23864458,142.67,142.66,0.1]
[1764215980059,21.94864458,142.67,142.66,0.1]
[1764215980231,24.7569431,142.67,142.66,0.1]
[1764215981154,19.11716252,142.67,142.66,0.1]
[1764215981438,19.388864,142.67,142.66,0.1]
[1764215981746,20.098864,142.67,142.66,0.1]
[1764215982545,27.10804602,142.67,142.66,0.1]
[1764215984346,20.098864,142.67,142.66,0.1]
[1764215984948,27.10804602,142.67,142.66,0.1]
[1764215988738,27.10804602,142.67,142.66,60.88]
[1764215990621,19.388864,142.67,142.66,60.88]
[1764215991250,20.098864,142.67,142.66,60.88]
[1764215992241,19.388864,142.67,142.66,60.88]
[1764215992939,20.098864,142.67,142.66,60.88]
[1764215994253,19.388864,142.67,142.66,60.88]
[1764215994839,19.388864,142.67,142.66,0.1]
[1764215995545,20.098864,142.67,142.66,0.1]
[1764215997461,19.388864,142.67,142.66,0.1]
[1764215998837,20.098864,142.67,142.66,0.1]
[1764216000040,19.388864,142.67,142.66,0.1]
[1764216000238,19.388864,142.67,142.66,61.6]
[1764216000946,28.9578266,142.67,142.66,61.6]
[1764216001351,37.76777152,142.67,142.66,61.6]
[1764216001544,37.76777152,142.67,142.66,0.1]
[1764216002684,16.308864,142.67,142.66,0.1]
[1764216002965,19.388864,142.67,142.66,0.81]
[1764216003175,28.2478266,142.67,142.66,0.1]
[1764216003353,28.9578266,142.67,142.66,0.1]
[1764216005186,37.76777152,142.67,142.66,0.1]
[1764216006466,32.83799094,142.67,142.66,0.1]
[1764216006753,37.76777152,142.67,142.66,0.1]
[1764216029202,37.05777152,142.67,142.66,0.1]
[1764216030906,37.77777152,142.67,142.66,0.1]
[1764216032805,38.10107062,142.67,142.66,0.1]
[1764216034208,26.2111257,142.67,142.66,0.1]
[1764216034405,10.08918202,142.67,142.66,0.8]
[1764216034986,3.08,142.67,142.66,0.8]
[1764216035604,9.9022617,142.67,142.66,0.8]
[1764216035809,12.9822617,142.67,142.66,0.8]
[1764216036104,12.9822617,142.67,142.66,0.1]
[1764216036280,13.7022617,142.67,142.66,0.1]
[1764216036689,12.9822617,142.67,142.66,0.1]
[1764216044381,22.51220662,142.67,142.66,0.1]
[1764216044786,43.5774034,142.67,142.66,0.1]
[1764216056721,40.4974034,142.67,142.66,0.1]
[1764216056922,43.5774034,142.67,142.66,0.1]
[1764216057500,40.4974034,142.67,142.66,0.1]
[1764216057701,21.06519678,142.67,142.66,0.81]
[1764216057909,3.08,142.68,142.66,0.81]
[1764216058125,16.308864,142.67,142.66,0.81]
[1764216058327,5.97307968,142.68,142.66,0.81]
[1764216059127,3.08,142.68,142.66,0.81]
[1764216059323,10.0887103,142.68,142.66,0.81]
[1764216060121,3.08,142.68,142.66,0.81]
[1764216060422,0.72,142.7,142.67,2.89307968]
[1764216060423,3.08,142.7,142.67,2.89307968]
[1764216060622,7.11065282,142.75,142.69,2.89307968]
[1764216060921,3.08,142.74,142.71,2.89307968]
[1764216061145,9.89819179,142.78,142.73,2.89307968]
[1764216061298,9.89819179,142.78,142.69,0.28432314]
[1764216061299,2.89307968,142.75,142.69,0.28432314]
[1764216061501,2.89307968,142.72,142.69,0.71]
[1764216061733,2.89307968,142.71,142.69,0.71]
[1764216062106,2.89307968,142.7,142.69,0.71]
[1764216062502,5.97307968,142.71,142.69,0.71]
[1764216063322,12.98033471,142.71,142.69,0.71]
[1764216063816,2.89307968,142.7,142.69,0.71]
[1764216066830,12.98033471,142.71,142.69,0.71]
[1764216067629,5.97307968,142.71,142.69,0.71]
[1764216068028,7.00684431,142.72,142.69,0.71]
[1764216068029,3.08,142.72,142.69,7.71819035]
[1764216068410,3.08,142.72,142.7,0.67]
[1764216069028,3.08,142.72,142.7,62.17]
[1764216069533,3.08,142.72,142.71,0.67]
[1764216070533,5.97307968,142.75,142.71,62.17]
[1764216070732,5.97307968,142.75,142.71,69.17721443]
[1764216070933,5.97307968,142.75,142.72,0.72]
[1764216071629,2.89307968,142.75,142.72,0.72]
[1764216071837,0.5,142.77,142.73,2.89307968]
[1764216072006,2.89307968,142.81,142.76,2.89307968]
[1764216072210,3.08,142.8,142.77,0.72]
[1764216072716,3.08,142.8,142.77,7.72426528]
[1764216072914,16.308864,142.82,142.77,10.61734496]
[1764216073119,16.308864,142.82,142.78,3.61307968]
[1764216073522,3.28,142.84,142.79,3.61307968]
[1764216074029,0.2,142.84,142.8,3.61307968]
[1764216074429,2.89307968,142.83,142.81,0.72]
[1764216076336,2.89307968,142.83,142.77,3.08]
[1764216076337,13.68518068,142.82,142.77,3.8]
[1764216076636,2.89307968,142.81,142.77,0.72]
[1764216076815,2.89307968,142.81,142.78,0.72]
[1764216076816,3.60307968,142.81,142.78,0.72]
[1764216077015,2.89307968,142.8,142.77,0.72]
[1764216077326,2.89307968,142.79,142.77,62.22]
[1764216077527,2.89307968,142.79,142.73,19.388864]
[1764216077528,2.89307968,142.78,142.75,0.72]
[1764216078424,29.99524212,142.79,142.75,0.72]
[1764216081458,27.10216244,142.79,142.75,7.72518658]
[1764216081674,29.99524212,142.79,142.76,0.72]
[1764216081829,29.28524212,142.79,142.73,7.00613902]
[1764216082145,3.60307968,142.78,142.75,0.72]
[1764216082454,10.60690482,142.78,142.75,0.72]
[1764216083251,2.89307968,142.77,142.75,0.72]
[1764216083551,3.08,142.76,142.75,61.5]
[1764216084732,3.08,142.76,142.75,62.22]
[1764216087153,3.08,142.76,142.75,61.5]
[1764216087560,3.08,142.76,142.75,62.22]
[1764216089360,3.08,142.76,142.75,61.5]
[1764216089965,3.08,142.76,142.75,62.22]
[1764216090468,3.08,142.76,142.75,61.5]
[1764216090957,3.08,142.76,142.75,62.22]
[1764216091174,10.08476323,142.76,142.75,62.22]
[1764216095048,3.08,142.76,142.75,62.22]
[1764216095446,10.08443732,142.77,142.75,62.22]
[1764216099364,11.93311078,142.77,142.75,62.22]
[1764216099563,2.55867346,142.76,142.67,107.66479439]
[1764216099867,1.84867346,142.72,142.67,61.5]
[1764216100066,5.64867346,142.72,142.68,0.71]
[1764216100247,12.65548653,142.72,142.68,0.71]
[1764216100768,5.64867346,142.72,142.68,0.71]
[1764216101065,5.64867346,142.72,142.68,7.7186283]
[1764216101268,3.08,142.75,142.7,1.84867346]
[1764216101569,3.08,142.75,142.71,1.84867346]
[1764216101768,3.08,142.75,142.71,2.55867346]
[1764216101970,3.08,142.75,142.72,0.71]
[1764216104552,3.08,142.75,142.72,62.21]
[1764216105361,3.08,142.75,142.73,0.71]
[1764216105563,3.08,142.75,142.73,62.21]
[1764216105984,8.85347542,142.76,142.73,62.21]
[1764216106156,11.93347542,142.76,142.73,62.21]
[1764216106354,12.65347542,142.76,142.73,62.21]
[1764216112804,12.65347542,142.76,142.73,61.5]
[1764216112988,12.65347542,142.76,142.74,0.71]
[1764216113301,9.57411722,142.75,142.73,61.5]
[1764216113596,8.80994492,142.71,142.66,0.1]
[1764216113799,1.84867346,142.67,142.66,0.1]
[1764216113957,3.8,142.7,142.66,0.1]
[1764216114266,4.92867346,142.69,142.66,0.81]
[1764216115378,1.84867346,142.7,142.66,0.81]
[1764216115585,3.08,142.69,142.66,0.81]
[1764216116678,3.08,142.69,142.66,7.81965955]
[1764216116872,1.84867346,142.7,142.66,7.81965955]
[1764216116873,12.65637269,142.71,142.67,0.71]
[1764216117079,11.93637269,142.71,142.67,0.71]
[1764216117376,4.92867346,142.71,142.67,0.71]
[1764216117581,5.64867346,142.71,142.67,0.71]
[1764216117786,4.92867346,142.71,142.67,7.71916706]
[1764216118183,18.15753746,142.72,142.68,0.71]
[1764216118371,9.57435047,142.75,142.69,1.84867346]
[1764216118689,5.64867346,142.75,142.7,1.84867346]
[1764216118986,3.08,142.75,142.7,1.84867346]
[1764216119193,3.8,142.75,142.71,0.71]
[1764216119369,5.64867346,142.75,142.71,0.71]
[1764216119569,12.65396151,142.75,142.71,0.71]
[1764216123685,9.57396151,142.75,142.71,0.71]
[1764216124190,10.08528805,142.75,142.71,0.71]
[1764216124403,25.16241513,142.76,142.71,7.71715185]
[1764216124578,19.388864,142.76,142.72,2.55867346]
[1764216124892,3.08,142.76,142.73,2.55867346]
[1764216125073,16.308864,142.78,142.73,2.55867346]
[1764216125398,3.08,142.78,142.74,0.71]
[1764216125893,3.08,142.78,142.74,2.55867346]
[1764216126278,3.08,142.78,142.75,0.71]
[1764216126481,3.73,142.78,142.75,0.71]
[1764216127393,2.49867346,142.77,142.72,0.28432314]
[1764216127576,0.28432314,142.71,142.59,7.11269967]
[1764216127778,49.50469384,142.66,142.59,0.1]
[1764216128089,18.15753746,142.63,142.59,0.1]
[1764216128273,16.308864,142.63,142.59,0.1]
[1764216128588,0.68,142.63,142.59,0.82]
[1764216129889,0.68,142.63,142.59,7.83294561]
[1764216130390,0.68,142.63,142.6,0.72]
[1764216132097,4.94867346,142.64,142.6,7.7325567]
[1764216132276,0.68,142.64,142.6,7.7325567]
[1764216133278,0.68,142.64,142.61,0.72]
[1764216133888,16.308864,142.67,142.63,1.84867346]
[1764216134090,12.63732186,142.69,142.62,8.85986124]
[1764216134295,2.52867346,142.68,142.63,0.72]
[1764216134498,18.83753746,142.68,142.63,0.72]
[1764216135175,18.83753746,142.68,142.63,7.73092662]
[1764216135566,18.83753746,142.68,142.64,0.72]
[1764216135996,25.84625246,142.68,142.64,0.72]
[1764216137487,25.16625246,142.68,142.64,0.72]
[1764216137682,0.68,142.67,142.64,0.72]
[1764216141588,2.52867346,142.67,142.64,0.72]
[1764216142000,0.68,142.67,142.64,0.72]
[1764216143200,0.68,142.67,142.64,62.22]
[1764216143901,16.308864,142.69,142.65,0.72]
[1764216144284,16.988864,142.69,142.65,0.72]
[1764216145078,8.85649503,142.7,142.59,0.1]
[1764216145079,16.308864,142.61,142.59,0.1]
[1764216145277,1.84867346,142.6,142.59,0.1]
[1764216145493,2.52867346,142.6,142.59,0.1]
[1764216145692,9.54129618,142.6,142.59,0.1]
[1764216146175,11.38996964,142.6,142.59,0.1]
[1764216146599,12.65881253,142.6,142.59,0.1]
[1764216149200,21.46875745,142.6,142.59,0.1]
[1764216151993,12.65881253,142.6,142.59,0.1]
[1764216156626,15.37562029,142.6,142.59,0.1]
[1764216160603,14.69562029,142.6,142.59,0.1]
[1764216160793,15.39562029,142.6,142.59,0.1]
[1764216163295,24.20556521,142.6,142.59,0.1]
[1764216166519,19.41918232,142.6,142.59,0.1]
[1764216168209,64.71012014,142.6,142.59,1e-08]
[1764216170813,61.81350546,142.6,142.59,1e-08]
[1764216171212,61.81350546,142.6,142.54,62.32]
[1764216171426,6.69661468,142.59,142.54,61.6]
[1764216171722,6.69661468,142.59,142.54,62.32]
[1764216171932,13.7097292,142.59,142.54,62.32]
[1764216172413,16.60634388,142.59,142.54,62.32]
[1764216173022,16.60634388,142.59,142.54,0.82]
[1764216173910,58.71634388,142.59,142.54,0.82]
[1764216174512,16.308864,142.56,142.54,0.1]
[1764216174717,5.99661468,142.55,142.54,0.1]
[1764216176023,13.0116971,142.55,142.54,0.1]
[1764216177430,16.308864,142.56,142.54,0.82]
[1764216177630,2.89661468,142.55,142.54,0.82]
[1764216177937,9.9116971,142.55,142.54,0.1]
[1764216178513,2.89661468,142.55,142.54,0.1]
[1764216180819,26.22019113,142.56,142.54,0.1]
[1764216181431,2.89661468,142.55,142.54,0.1]
[1764216182631,2.89661468,142.55,142.54,0.82]
[1764216182838,2.89661468,142.55,142.54,0.1]
[1764216183638,26.2205611,142.55,142.54,0.1]
[1764216189626,23.32394642,142.55,142.54,0.1]
[1764216189842,26.2205611,142.55,142.54,0.1]
[1764216191847,23.32394642,142.55,142.54,0.1]
[1764216193723,26.2205611,142.55,142.54,0.1]
[1764216196632,19.20547868,142.55,142.54,0.1]
[1764216196955,26.2205611,142.55,142.54,0.1]
[1764216200567,23.32394642,142.55,142.54,0.1]
[1764216210746,24.04394642,142.55,142.54,0.1]
[1764216211346,27.14394642,142.55,142.54,0.1]
[1764216212138,30.0405611,142.55,142.54,0.01991904]
[1764216212744,27.14394642,142.55,142.54,0.01991904]
[1764216217551,5.67342418,142.57,142.54,0.71991904]
[1764216217759,7.01459034,142.56,142.54,0.71991904]
[1764216218443,17.53278631,142.59,142.54,2.57334322]
[1764216218444,3.1,142.59,142.54,2.57334322]
[1764216218646,3.82,142.59,142.54,2.57334322]
[1764216218844,5.67342418,142.59,142.55,0.7]
[1764216219460,12.6865387,142.59,142.55,0.7]
[1764216220058,11.9665387,142.59,142.55,0.7]
[1764216220240,1.85342418,142.57,142.54,0.67991904]
[1764216220444,7.66377239,142.58,142.54,0.67991904]
[1764216220655,2.50342418,142.57,142.54,0.67991904]
[1764216221754,7.01377239,142.58,142.54,0.67991904]
[1764216221955,10.1131889,142.59,142.54,9.54886703]
[1764216222464,10.1131889,142.59,142.55,0.66]
[1764216222772,10.7631889,142.59,142.55,0.66]
[1764216223762,10.7631889,142.59,142.55,62.16]
[1764216223966,10.7631889,142.59,142.56,0.66]
[1764216224160,2.50342418,142.58,142.55,61.5]
[1764216224464,1.85342418,142.57,142.55,61.5]
[1764216224670,2.50342418,142.57,142.55,61.5]
[1764216224867,0.65,142.56,142.55,61.5]
[1764216225075,0.65,142.56,142.54,61.51991904]
[1764216225948,7.01508242,142.55,142.54,61.51991904]
[1764216226373,7.66508242,142.55,142.54,0.01991904]
[1764216227877,28.74359989,142.55,142.54,0.01991904]
[1764216228577,30.59702407,142.55,142.54,0.01991904]
[1764216230456,39.40696899,142.55,142.54,0.01991904]
[1764216230659,39.69129213,142.55,142.54,0.01991904]
[1764216232676,39.54913056,142.55,142.54,0.01991904]
[1764216235364,25.11880892,142.52,142.51,1e-08]
[1764216235578,31.92565728,142.52,142.51,1e-08]
[1764216235872,32.57565728,142.52,142.51,1e-08]
[1764216236078,35.38770691,142.52,142.51,1e-08]
[1764216237161,33.81860587,142.52,142.51,1e-08]
[1764216237375,40.83516494,142.52,142.51,1e-08]
[1764216237673,38.98174076,142.52,142.51,1e-08]
[1764216237879,40.83516494,142.52,142.51,1e-08]
[1764216238179,40.5508418,142.52,142.51,1e-08]
[1764216239874,39.9008418,142.52,142.51,1e-08]
[1764216240262,40.5508418,142.52,142.51,1e-08]
[1764216240471,39.9008418,142.52,142.51,1e-08]
[1764216240670,38.69741762,142.52,142.51,1e-08]
[1764216240869,40.5508418,142.52,142.51,1e-08]
[1764216248893,19.12091363,142.52,142.51,0.68000001]
[1764216249179,10.11601005,142.54,142.51,0.68000001]
[1764216249371,7.01778334,142.53,142.51,0.68000001]
[1764216250663,14.0340792,142.53,142.51,0.68000001]
[1764216253187,7.01778334,142.53,142.51,0.68000001]
[1764216253393,26.42449792,142.54,142.51,0.68000001]
[1764216253575,40.87181888,142.54,142.51,0.68000001]
[1764216254969,42.72524306,142.54,142.51,0.68000001]
[1764216256872,40.87181888,142.54,142.51,0.68000001]
[1764216258972,28.9879221,142.54,142.51,62.18000001]
[1764216259203,21.08147991,142.53,142.51,62.18000001]
[1764216259382,28.09754972,142.53,142.52,0.7]
[1764216262694,28.09754972,142.53,142.51,62.20000001]
[1764216263010,7.01606981,142.53,142.51,62.20000001]
[1764216263507,26.42461403,142.54,142.51,61.50000001]
[1764216263997,26.42461403,142.54,142.52,0.7]
[1764216264390,23.32461403,142.54,142.52,0.7]
[1764216264584,44.40461262,142.54,142.52,0.7]
[1764216264984,44.40461262,142.54,142.52,62.2]
[1764216265180,23.32461403,142.54,142.52,62.2]
[1764216265377,44.40461262,142.54,142.52,62.2]
[1764216265786,23.32461403,142.54,142.52,61.5]
[1764216265983,23.32461403,142.54,142.53,0.7]
[1764216266187,23.32461403,142.54,142.52,61.5]
[1764216266398,24.17999859,142.55,142.53,0.7]
[1764216266582,1.85342418,142.58,142.53,62.2]
[1764216266787,24.17555586,142.57,142.53,62.2]
[1764216266987,24.17555586,142.57,142.54,0.7]
[1764216267392,31.18975088,142.57,142.54,0.7]
[1764216267591,21.07555586,142.57,142.54,2.55342418]
[1764216267790,8.86671933,142.59,142.54,5.65342418]
[1764216267991,21.07407537,142.59,142.55,0.7]
[1764216268398,8.80994492,142.63,142.55,7.71484307]
[1764216268597,22.92305932,142.62,142.55,7.71484307]
[1764216268899,39.23192332,142.62,142.56,0.7]
[1764216269090,21.06963514,142.62,142.57,3.1]
[1764216269297,1.85342418,142.62,142.57,3.1]
[1764216269602,1.85342418,142.62,142.58,7.71360639]
[1764216269995,18.97952465,142.63,142.59,0.7]
[1764216270182,17.83610047,142.63,142.59,0.7]
[1764216270385,1.85342418,142.62,142.59,0.7]
[1764216271511,8.86513865,142.62,142.59,0.7]
[1764216272814,7.01171447,142.62,142.59,0.7]
[1764216273508,7.01171447,142.62,142.58,0.7]
[1764216273509,2.56342418,142.61,142.58,0.7]
[1764216273889,0.71,142.61,142.58,0.7]
[1764216274306,8.86513865,142.62,142.58,0.7]
[1764216275201,9.57513865,142.62,142.58,0.7]
[1764216276415,7.72171447,142.62,142.58,0.7]
[1764216276912,28.79134961,142.62,142.58,0.7]
[1764216278303,26.42006024,142.63,142.59,1.85342418]
[1764216278711,26.42006024,142.63,142.6,0.7]
[1764216280998,33.4330542,142.63,142.6,0.7]
[1764216281913,26.42185796,142.63,142.6,7.71260792]
[1764216282115,2.89373863,142.65,142.6,72.10634655]
[1764216282410,3.1,142.65,142.61,0.68]
[1764216282611,16.308864,142.65,142.61,0.68]
[1764216283613,23.31905792,142.65,142.61,7.69211183]
[1764216284191,24.01905792,142.65,142.62,0.68]
[1764216284391,26.91279655,142.65,142.62,0.68]
[1764216285801,26.91279655,142.65,142.62,62.18]
[1764216286615,23.31905792,142.65,142.63,0.68]
[1764216286796,23.31905792,142.65,142.63,62.18]
[1764216287202,24.01905792,142.65,142.63,62.18]
[1764216287393,24.01905792,142.65,142.63,61.5]
[1764216287818,26.91279655,142.65,142.63,61.5]
[1764216290028,30.01279655,142.65,142.63,61.5]
[1764216291333,27.11905792,142.65,142.63,61.5]
[1764216296221,2.89373863,142.64,142.63,61.5]
[1764216297725,10.60439482,142.64,142.63,61.5]
[1764216298337,9.90439482,142.64,142.63,61.5]
[1764216299358,67.28880892,142.61,142.54,0.68]
[1764216299653,2.89373863,142.55,142.53,0.68]
[1764216299863,3.1,142.56,142.53,0.68]
[1764216300066,5.99373863,142.56,142.53,0.68]
[1764216300471,13.70840652,142.56,142.53,0.68]
[1764216300758,2.89373863,142.54,142.51,1e-08]
[1764216300970,16.308864,142.59,142.53,2.89373863]
[1764216301269,16.308864,142.59,142.55,2.89373863]
[1764216301425,16.308864,142.59,142.54,0.68]
[1764216301626,16.308864,142.59,142.55,2.89373863]
[1764216301850,5.99373863,142.64,142.58,2.89373863]
[1764216302031,2.89373863,142.63,142.56,0.96432314]
[1764216302232,3.1,142.64,142.58,2.89373863]
[1764216302434,19.408864,142.64,142.59,7.01296587]
[1764216302633,2.89373863,142.63,142.6,0.68]
[1764216303041,22.30260263,142.64,142.6,0.68]
[1764216303437,19.408864,142.64,142.6,0.68]
[1764216303639,22.30260263,142.64,142.6,0.68]
[1764216304235,2.89373863,142.63,142.6,0.68]
[1764216312541,2.89373863,142.63,142.6,62.18]
[1764216312858,3.1,142.64,142.6,69.19261296]
[1764216313042,9.9040403,142.65,142.61,0.67]
[1764216313242,10.5740403,142.65,142.61,69.18206255]
[1764216313864,10.5740403,142.65,142.62,0.67]
[1764216314044,27.08867614,142.66,142.62,0.67]
[1764216314362,2.89373863,142.65,142.62,62.17]
[1764216314750,2.89373863,142.65,142.63,0.67]
[1764216315492,2.89373863,142.64,142.62,61.5]
[1764216315666,2.89373863,142.63,142.62,61.5]
[1764216315960,3.56373863,142.63,142.62,61.5]
[1764216317645,29.98375035,142.63,142.6,61.5]
[1764216317859,2.89373863,142.61,142.6,61.5]
[1764216318364,3.56373863,142.61,142.6,61.5]
[1764216318562,2.89373863,142.61,142.6,61.5]
[1764216319367,3.56373863,142.61,142.6,61.5]
[1764216320966,2.89373863,142.61,142.6,61.5]
[1764216322363,9.90586961,142.61,142.6,61.5]
[1764216322569,10.57586961,142.61,142.6,61.5]
[1764216323948,10.57586961,142.61,142.57,62.17]
[1764216324143,2.89373863,142.6,142.57,61.8034]
[1764216324358,3.56373863,142.6,142.57,61.8034]
[1764216324555,10.57648564,142.6,142.57,61.8034]
[1764216324968,10.57648564,142.6,142.57,61.5]
[1764216325164,9.90648564,142.6,142.57,61.5]
[1764216326265,9.90648564,142.6,142.58,0.67]
[1764216327249,9.90648564,142.6,142.56,10.11454724]
[1764216327250,9.90648564,142.6,142.56,3.1]